bitfinex-derivatives/quotes_SOLF0:USTF0_20251023
["timestamp","ask_amount","ask_price","bid_price","bid_amount"]
[1761202453806,2.77,186.69,186.66,2.75]
[1761202454009,1.98810664,186.72,186.66,2.75]
[1761202454203,7.08834567,186.71,186.66,7.5701]
[1761202454403,4.31834567,186.7,186.66,4.8201]
[1761202454708,4.31834567,186.69,186.68,2.75]
[1761202455007,1.98810664,186.72,186.68,2.75]
[1761202455196,4.31889647,186.71,186.68,2.75]
[1761202455401,4.31889647,186.7,186.68,2.75]
[1761202455602,2.77,186.74,186.68,2.75]
[1761202455799,7.08918909,186.73,186.69,2.75]
[1761202456004,4.31918909,186.72,186.69,2.75]
[1761202456206,4.31918909,186.71,186.69,4.8194]
[1761202456510,4.31918909,186.71,186.62,9.98810664]
[1761202456511,4.75810664,186.76,186.7,2.75]
[1761202456711,7.07153539,186.75,186.7,2.75]
[1761202456899,4.30153539,186.74,186.7,4.8191]
[1761202457100,4.30153539,186.73,186.71,2.75]
[1761202457305,4.75810664,186.76,186.71,2.75]
[1761202457504,4.30107385,186.75,186.71,2.75]
[1761202457708,4.30107385,186.74,186.72,2.75]
[1761202457910,4.30107385,186.73,186.72,2.75]
[1761202458409,2.77,186.76,186.72,2.75]
[1761202458611,4.30050277,186.75,186.72,2.75]
[1761202458803,4.30050277,186.74,186.72,2.75]
[1761202459004,2.77,186.76,186.72,2.75]
[1761202459312,4.3003535,186.75,186.72,2.75]
[1761202459508,4.3003535,186.74,186.72,2.75]
[1761202459713,1.98810664,186.78,186.72,2.75]
[1761202459913,7.03929773,186.77,186.72,2.75]
[1761202460116,4.26929773,186.76,186.69,2.75]
[1761202460415,4.2678768,186.8,186.69,2.75]
[1761202460611,4.2678768,186.79,186.69,2.75]
[1761202460811,2.77,186.81,186.69,2.75]
[1761202461112,4.26775669,186.8,186.69,2.75]
[1761202461314,4.26775669,186.79,186.76,2.75]
[1761202461511,2.77,186.81,186.76,2.75]
[1761202461806,6.99403411,186.8,186.76,2.75]
[1761202462012,4.75810664,186.83,186.78,2.75]
[1761202462213,4.22246496,186.82,186.78,2.75]
[1761202462407,4.22246496,186.81,186.78,2.75]
[1761202462600,4.75810664,186.86,186.78,2.75]
[1761202462805,4.2240846,186.85,186.78,2.75]
[1761202463001,4.2240846,186.84,186.78,7.5672]
[1761202463207,4.2240846,186.83,186.79,2.75]
[1761202463412,4.2240846,186.82,186.79,2.75]
[1761202463716,2.77,186.86,186.79,2.75]
[1761202463915,4.22222994,186.85,186.79,7.5667]
[1761202464113,2.77,186.83,186.79,4.8167]
[1761202464310,2.77,186.83,186.79,7.5467]
[1761202464916,2.77,186.83,186.77,4.8174]
[1761202465111,4.21894358,186.82,186.77,4.8174]
[1761202465305,2.71,186.81,186.77,4.8174]
[1761202465615,4.21918325,186.83,186.77,7.5474]
[1761202465809,4.69810664,186.84,186.79,4.817]
[1761202466009,4.21895791,186.83,186.79,7.547]
[1761202466218,2.71,186.83,186.79,7.547]
[1761202466404,6.92666902,186.83,186.79,7.547]
[1761202466608,2.71,186.83,186.79,7.547]
[1761202466812,16.08,186.91,186.81,2.73]
[1761202466813,4.69810664,186.87,186.81,2.73]
[1761202467011,2.71,186.85,186.81,2.73]
[1761202467212,4.21651712,186.84,186.81,2.73]
[1761202467714,2.71,186.85,186.81,2.73]
[1761202468816,6.92248044,186.85,186.81,2.73]
[1761202469015,2.71,186.85,186.81,2.73]
[1761202470109,4.88810664,186.88,186.81,7.5462]
[1761202470313,4.20420687,186.87,186.81,7.5462]
[1761202471117,4.20420687,186.87,186.82,2.94]
[1761202471413,2.9,186.88,186.83,2.94]
[1761202471811,2.9,186.88,186.82,4.816]
[1761202471812,1.98810664,186.87,186.82,4.816]
[1761202472018,2.9,186.86,186.82,4.816]
[1761202472322,2.9,186.86,186.82,7.756]
[1761202475119,1.98810664,186.87,186.83,2.94]
[1761202475321,1.98810664,186.87,186.69,84.6068]
[1761202475322,2.9,186.86,186.77,2.94]
[1761202477119,2.9,186.86,186.78,7.757]
[1761202477521,1.98810664,186.84,186.78,7.757]
[1761202479323,2.9,186.86,186.78,7.757]
[1761202479521,1.98810664,186.84,186.79,7.7568]
[1761202479824,1.98810664,186.85,186.8,2.94]
[1761202480514,1.98810664,186.85,186.8,4.8165]
[1761202480713,1.98810664,186.85,186.81,2.94]
[1761202481228,4.88810664,186.85,186.81,2.94]
[1761202483020,2.9,186.85,186.81,2.94]
[1761202483215,4.88810664,186.85,186.81,2.94]
[1761202484428,2.9,186.84,186.81,2.94]
[1761202485131,1.98810664,186.85,186.81,2.94]
[1761202486832,4.88810664,186.85,186.81,2.94]
[1761202487034,2.9,186.84,186.78,7.7571]
[1761202487235,7.09158013,186.83,186.79,2.94]
[1761202487432,2.9,186.83,186.79,2.94]
[1761202487831,2.9,186.81,186.76,7.7576]
[1761202488128,2.9,186.78,186.67,2.94]
[1761202488327,4.88810664,186.76,186.72,2.94]
[1761202488528,2.9,186.75,186.71,4.8188]
[1761202488739,1.2719861,186.73,186.71,4.8188]
[1761202489126,1.2719861,186.73,186.72,2.94]
[1761202490329,1.2719861,186.75,186.72,2.94]
[1761202491729,1.2719861,186.73,186.72,2.94]
[1761202491937,1.2719861,186.73,186.7,2.94]
[1761202493036,1.2719861,186.73,186.71,2.94]
[1761202493233,1.2719861,186.73,186.7,4.8191]
[1761202493538,1.2719861,186.73,186.71,2.94]
[1761202495134,1.2719861,186.75,186.71,2.94]
[1761202495643,1.2719861,186.74,186.67,2.94]
[1761202496026,1.2719861,186.72,186.69,4.8195]
[1761202496235,2.9,186.71,186.67,2.94]
[1761202497330,1.2719861,186.68,186.62,2.94]
[1761202497939,1.2719861,186.68,186.64,4.8208]
[1761202498127,1.2719861,186.68,186.64,7.7608]
[1761202498829,4.2019861,186.68,186.64,7.7608]
[1761202499230,4.2019861,186.72,186.66,4.8202]
[1761202499429,1.2719861,186.7,186.66,2.67]
[1761202500239,2.93,186.72,186.66,2.67]
[1761202500240,4.2087603,186.71,186.66,2.67]
[1761202500432,2.93,186.71,186.66,2.67]
[1761202500626,16.08,186.77,186.63,4.8211]
[1761202500627,2.93,186.69,186.63,4.8211]
[1761202500827,1.2719861,186.65,186.56,1.2719861]
[1761202501027,1.2719861,186.65,186.57,2.67]
[1761202501432,1.2719861,186.65,186.57,7.4924]
[1761202501634,1.2719861,186.65,186.58,2.67]
[1761202502335,4.2019861,186.67,186.6,4.8218]
[1761202502530,4.2019861,186.67,186.61,2.67]
[1761202503343,1.2719861,186.62,186.57,2.67]
[1761202503542,2.93,186.61,186.57,2.67]
[1761202505940,1.2719861,186.6,186.57,2.67]
[1761202506145,4.2019861,186.6,186.56,2.67]
[1761202506347,2.93,186.63,186.56,2.67]
[1761202506535,4.2019861,186.61,186.56,2.67]
[1761202506742,2.93,186.6,186.56,2.67]
[1761202506937,1.2719861,186.61,186.56,2.67]
[1761202507144,1.2719861,186.64,186.56,2.67]
[1761202507446,1.2719861,186.64,186.57,2.67]
[1761202507946,2.93,186.63,186.57,7.4924]
[1761202508240,2.93,186.61,186.57,2.67]
[1761202508439,2.93,186.61,186.54,7.4933]
[1761202508840,2.93,186.57,186.49,1.2719861]
[1761202509036,2.93,186.57,186.5,4.8244]
[1761202510043,2.93,186.57,186.5,7.4944]
[1761202510349,53.88691805,187.31,186.47,7.4951]
[1761202510350,2.93,186.53,186.47,7.4951]
[1761202512137,1.2719861,186.56,186.5,2.67]
[1761202513045,2.93,186.55,186.46,1.2719861]
[1761202513250,1.2719861,186.51,186.44,2.67]
[1761202513844,2.93,186.54,186.44,2.67]
[1761202513845,1.2719861,186.49,186.44,2.67]
[1761202514545,2.93,186.54,186.44,4.8258]
[1761202514744,2.93,186.54,186.45,2.67]
[1761202514745,1.2719861,186.52,186.45,2.67]
[1761202514946,1.2719861,186.56,186.48,2.67]
[1761202515453,1.2719861,186.56,186.52,2.67]
[1761202516448,2.93,186.58,186.52,2.67]
[1761202516753,1.2719861,186.59,186.54,2.67]
[1761202516945,2.93,186.62,186.54,2.67]
[1761202516946,1.2719861,186.61,186.54,2.67]
[1761202517639,1.2719861,186.61,186.56,4.8229]
[1761202517846,2.93,186.62,186.57,2.67]
[1761202518051,1.2719861,186.64,186.57,2.67]
[1761202518657,2.93,186.64,186.58,4.8223]
[1761202518948,2.93,186.64,186.58,7.4923]
[1761202521650,2.93,186.64,186.56,4.8229]
[1761202521853,2.93,186.65,186.54,2.67]
[1761202522241,2.93,186.65,186.59,7.4919]
[1761202522846,2.93,186.65,186.52,3.24275624]
[1761202522847,2.93,186.65,186.61,4.8216]
[1761202523145,7.13225724,186.68,186.61,7.4916]
[1761202523347,4.20225724,186.67,186.61,7.4916]
[1761202523756,2.93,186.68,186.61,7.4916]
[1761202524149,7.13225724,186.68,186.61,7.4916]
[1761202524350,2.93,186.68,186.61,7.4916]
[1761202524943,7.11754245,186.68,186.61,7.4916]
[1761202525148,2.93,186.68,186.61,7.4916]
[1761202525745,7.11936455,186.68,186.61,7.4916]
[1761202525949,2.93,186.68,186.61,7.4916]
[1761202526150,4.18936455,186.67,186.61,7.4916]
[1761202527356,2.93,186.68,186.61,7.4916]
[1761202527558,4.19383404,186.67,186.61,7.4916]
[1761202527857,2.93,186.68,186.61,7.4916]
[1761202528057,4.19081932,186.67,186.61,7.4916]
[1761202528257,2.93,186.68,186.62,2.79]
[1761202528560,4.19330481,186.67,186.62,2.79]
[1761202528754,2.9,186.7,186.62,2.79]
[1761202529049,7.09322905,186.69,186.62,2.79]
[1761202529251,4.19322905,186.68,186.63,2.73]
[1761202529457,4.19322905,186.67,186.63,2.73]
[1761202529658,2.9,186.69,186.64,2.73]
[1761202529956,2.9,186.73,186.64,2.73]
[1761202530163,4.19579157,186.72,186.64,2.73]
[1761202530356,4.19579157,186.71,186.64,2.73]
[1761202530661,4.19579157,186.7,186.64,2.73]
[1761202530960,4.19579157,186.69,186.65,4.8204]
[1761202531162,4.19579157,186.68,186.66,2.73]
[1761202531352,2.9,186.73,186.66,2.73]
[1761202531660,7.10231205,186.72,186.66,2.73]
[1761202531956,7.10231205,186.71,186.66,2.73]
[1761202532156,4.20231205,186.7,186.66,2.73]
[1761202532355,4.20231205,186.69,186.66,2.73]
[1761202532554,4.20231205,186.68,186.66,2.73]
[1761202532754,4.20231205,186.67,186.66,2.73]
[1761202533960,2.9,186.71,186.66,2.73]
[1761202534161,4.1486773,186.7,186.66,2.73]
[1761202534459,2.9,186.74,186.66,2.73]
[1761202534661,7.04958081,186.73,186.66,2.73]
[1761202534860,4.14958081,186.72,186.66,2.73]
[1761202535157,2.9,186.76,186.68,2.73]
[1761202535463,2.9,186.78,186.68,2.73]
[1761202535655,4.14894252,186.77,186.65,2.73]
[1761202535961,4.14894252,186.76,186.65,2.73]
[1761202536257,2.9,186.78,186.65,2.73]
[1761202536564,4.14916867,186.77,186.65,2.73]
[1761202536755,4.14916867,186.76,186.65,2.73]
[1761202536955,4.05963102,186.77,186.71,7.5488]
[1761202537562,4.05963102,186.77,186.71,4.8188]
[1761202537761,4.05963102,186.77,186.72,2.73]
[1761202538160,4.05963102,186.81,186.74,2.73]
[1761202538354,6.14275624,186.82,186.74,2.73]
[1761202538355,4.05963102,186.8,186.74,2.73]
[1761202538555,4.05963102,186.81,186.74,2.73]
[1761202539053,6.14275624,186.82,186.74,2.73]
[1761202539249,6.14275624,186.82,186.75,7.5478]
[1761202539863,10.2022753,186.82,186.75,7.5478]
[1761202540163,4.05951906,186.81,186.75,7.5478]
[1761202540361,6.14275624,186.82,186.75,7.5478]
[1761202540763,1.27097165,186.8,186.76,2.73]
[1761202541159,4.17097165,186.8,186.76,2.73]
[1761202541563,2.9,186.78,186.72,2.73]
[1761202541761,2.9,186.76,186.72,2.73]
[1761202541959,1.27097165,186.74,186.72,2.73]
[1761202542159,2.9,186.76,186.72,2.73]
[1761202542160,1.27097165,186.75,186.72,2.73]
[1761202542362,1.27097165,186.77,186.72,2.73]
[1761202543968,1.27097165,186.77,186.73,2.73]
[1761202545263,4.17097165,186.77,186.73,2.73]
[1761202545464,2.9,186.77,186.73,2.73]
[1761202545656,4.05266559,186.81,186.74,4.8183]
[1761202545860,1.27097165,186.84,186.75,2.73]
[1761202546057,4.17097165,186.84,186.75,2.73]
[1761202546263,1.27097165,186.82,186.75,2.73]
[1761202547064,1.27097165,186.82,186.78,2.73]
[1761202547461,1.27097165,186.82,186.75,4.8177]
[1761202547462,2.9,186.81,186.75,4.8177]
[1761202547871,2.9,186.81,186.75,7.5477]
[1761202548269,1.27097165,186.82,186.76,2.73]
[1761202548777,2.9,186.84,186.73,2.73]
[1761202549567,2.9,186.84,186.77,4.817]
[1761202550070,2.9,186.84,186.77,7.547]
[1761202552169,2.9,186.84,186.78,2.73]
[1761202552571,1.98530225,186.83,186.78,2.73]
[1761202552871,2.9,186.82,186.75,7.5476]
[1761202553073,2.9,186.79,186.75,2.73]
[1761202554274,1.98530225,186.8,186.75,2.73]
[1761202554770,2.9,186.79,186.73,4.8182]
[1761202555269,2.9,186.79,186.74,4.8178]
[1761202555474,2.9,186.79,186.75,2.73]
[1761202556572,2.9,186.79,186.74,4.8178]
[1761202556773,2.9,186.79,186.74,7.5478]
[1761202557175,2.9,186.79,186.75,2.73]
[1761202557968,1.98530225,186.82,186.75,2.73]
[1761202558170,1.98530225,186.82,186.75,7.5475]
[1761202558370,4.88530225,186.82,186.75,7.5475]
[1761202558578,4.88530225,186.82,186.76,2.7]
[1761202560365,4.88530225,186.82,186.73,4.8182]
[1761202560366,2.66,186.81,186.73,4.8182]
[1761202560579,4.64530225,186.79,186.73,4.8182]
[1761202561470,2.66,186.78,186.73,4.8182]
[1761202562185,2.66,186.78,186.73,7.5182]
[1761202562573,1.98530225,186.79,186.65,1.98530225]
[1761202562574,1.98530225,186.79,186.66,2.7]
[1761202563173,4.64530225,186.79,186.66,2.7]
[1761202563375,8.70342881,186.79,186.66,2.7]
[1761202563573,4.64530225,186.79,186.73,4.8181]
[1761202563769,2.66,186.78,186.72,2.7]
[1761202564777,2.66,186.78,186.72,4.8183]
[1761202564973,1.98530225,186.79,186.73,2.7]
[1761202565278,4.97740292,186.86,186.73,2.7]
[1761202565279,2.66,186.85,186.73,2.7]
[1761202565483,4.06090724,186.84,186.76,2.7]
[1761202565688,4.06090724,186.83,186.76,2.7]
[1761202565884,4.06090724,186.84,186.76,2.7]
[1761202566187,2.66,186.85,186.78,7.5167]
[1761202566386,4.0557248,186.84,186.78,7.5167]
[1761202566686,4.05541667,186.84,186.78,7.5167]
[1761202566989,2.66,186.85,186.78,7.5167]
[1761202567286,2.66,186.85,186.79,4.8165]
[1761202567586,2.66,186.85,186.79,7.5165]
[1761202567785,2.66,186.85,186.8,2.7]
[1761202568284,2.66,186.83,186.77,4.8171]
[1761202568485,2.66,186.83,186.78,2.7]
[1761202568685,2.66,186.83,186.77,4.8171]
[1761202569076,2.66,186.83,186.77,7.5171]
[1761202570187,4.01806906,186.85,186.78,7.5167]
[1761202570388,2.66,186.86,186.79,2.7]
[1761202570589,6.67889169,186.85,186.79,2.7]
[1761202570888,2.66,186.84,186.79,2.7]
[1761202572286,4.0200966,186.85,186.74,2.7]
[1761202572588,2.66,186.89,186.8,2.7]
[1761202572787,4.02076119,186.88,186.8,2.7]
[1761202572988,4.02080235,186.87,186.8,2.7]
[1761202573181,2.66,186.89,186.8,2.7]
[1761202573486,4.64530225,186.87,186.8,2.7]
[1761202573889,2.66,186.87,186.8,2.7]
[1761202574088,6.67898931,186.9,186.82,2.7]
[1761202574284,6.67898931,186.89,186.82,2.7]
[1761202574490,4.01898931,186.88,186.82,2.7]
[1761202574691,2.66,186.89,186.82,2.7]
[1761202574890,4.02015363,186.88,186.83,2.7]
[1761202575192,2.66,186.92,186.83,2.7]
[1761202575393,4.02089238,186.91,186.83,2.7]
[1761202575592,2.66,186.92,186.83,2.7]
[1761202575891,4.01924688,186.91,186.83,2.7]
[1761202576093,2.66,186.92,186.83,2.7]
[1761202576387,4.01932064,186.91,186.83,2.7]
[1761202576580,1.98530225,186.94,186.88,2.7]
[1761202576780,4.00377496,186.93,186.88,2.7]
[1761202578187,6.66377496,186.93,186.88,2.7]
[1761202579393,2.66,186.92,186.88,2.7]
[1761202579590,2.66,186.92,186.85,7.5151]
[1761202579896,2.66,186.92,186.86,2.7]
[1761202580692,6.66290538,186.92,186.86,2.7]
[1761202580997,2.66,186.92,186.86,2.7]
[1761202581198,6.66290538,186.92,186.86,2.7]
[1761202581398,2.66,186.92,186.86,2.7]
[1761202581693,6.66290538,186.92,186.86,2.7]
[1761202581894,5.98820763,186.91,186.83,2.7]
[1761202582095,2.66,186.89,186.8,2.7]
[1761202582290,5.98808591,186.88,186.8,2.7]
[1761202582597,2.66,186.84,186.76,2.7]
[1761202582899,1.98530225,186.82,186.76,2.7]
[1761202583290,4.64530225,186.82,186.76,2.7]
[1761202584090,1.98530225,186.82,186.76,2.7]
[1761202584799,6.69497026,186.85,186.77,2.86]
[1761202584996,4.00506628,186.84,186.77,2.86]
[1761202585194,2.69,186.85,186.77,2.86]
[1761202585396,6.69506628,186.85,186.77,2.86]
[1761202585595,2.69,186.85,186.78,2.86]
[1761202585992,6.69520666,186.85,186.78,2.86]
[1761202586193,2.69,186.85,186.78,2.86]
[1761202588606,2.69,186.85,186.75,2.89]
[1761202588607,6.69634155,186.85,186.75,2.89]
[1761202588804,2.69,186.85,186.75,2.89]
[1761202589503,2.69,186.85,186.79,2.89]
[1761202593402,2.69,186.85,186.79,7.7065]
[1761202593905,2.69,186.85,186.75,4.8176]
[1761202594105,4.00754034,186.84,186.75,4.8176]
[1761202594305,2.69,186.83,186.75,7.7076]
[1761202594711,2.69,186.83,186.76,4.8173]
[1761202595511,2.69,186.83,186.75,2.89]
[1761202596606,2.69,186.83,186.73,2.89]
[1761202596810,2.69,186.82,186.73,2.89]
[1761202598100,2.69,186.82,186.69,2.89]
[1761202598101,2.69,186.79,186.69,2.89]
[1761202598409,2.69,186.77,186.69,2.89]
[1761202600803,2.69,186.77,186.7,7.709]
[1761202601005,2.69,186.77,186.7,2.89]
[1761202602109,2.69,186.75,186.63,2.89]
[1761202602309,2.69,186.74,186.63,2.89]
[1761202603011,2.69,186.78,186.64,2.89]
[1761202604717,1.9871038,186.77,186.64,2.89]
[1761202604907,4.6771038,186.77,186.64,2.89]
[1761202605104,4.6771038,186.77,186.69,2.89]
[1761202605413,2.69,186.76,186.69,2.89]
[1761202605805,2.69,186.76,186.69,7.7091]
[1761202606010,1.9871038,186.77,186.7,2.89]
[1761202607014,4.6771038,186.77,186.7,2.89]
[1761202608816,3.9617862,186.74,186.7,2.89]
[1761202609706,2.69,186.74,186.7,2.89]
[1761202609906,3.9617862,186.74,186.7,2.89]
[1761202610713,1.2717862,186.74,186.67,2.89]
[1761202610912,1.2717862,186.76,186.67,2.89]
[1761202612119,1.2717862,186.76,186.72,2.89]
[1761202612319,3.9617862,186.76,186.72,2.89]
[1761202613017,117.8776332,188.17,186.74,2.89]
[1761202613018,2.69,186.84,186.74,2.89]
[1761202613225,1.2717862,186.81,186.74,2.89]
[1761202613423,1.2717862,186.79,186.74,2.89]
[1761202613622,1.2717862,186.81,186.74,2.89]
[1761202614123,1.2717862,186.81,186.76,7.7073]
[1761202614124,2.69,186.8,186.76,7.7073]
[1761202615721,2.69,186.8,186.76,4.8173]
[1761202616311,2.69,186.8,186.76,7.7073]
[1761202616819,2.69,186.89,186.8,2.89]
[1761202617022,2.69,186.89,186.82,2.89]
[1761202617411,2.69,186.89,186.79,4.8165]
[1761202617412,2.69,186.88,186.79,4.8165]
[1761202617616,2.69,186.85,186.79,4.8165]
[1761202618631,2.69,186.85,186.8,4.1617862]
[1761202618925,2.69,186.85,186.81,4.8162]
[1761202619321,2.92,186.89,186.81,4.8162]
[1761202619626,2.92,186.89,186.81,7.5462]
[1761202620224,2.92,186.87,186.81,4.8162]
[1761202620621,2.92,186.87,186.82,1.2717862]
[1761202621021,2.92,186.87,186.8,1.2717862]
[1761202621219,2.92,186.87,186.78,4.0017862]
[1761202621220,18.98,186.87,186.78,4.0017862]
[1761202621421,2.92,186.85,186.74,2.73]
[1761202621629,2.92,186.84,186.76,1.2717862]
[1761202622324,2.92,186.84,186.78,1.2717862]
[1761202622533,2.92,186.84,186.8,4.0017862]
[1761202623435,2.92,186.84,186.8,1.2717862]
[1761202623629,2.92,186.84,186.79,4.8165]
[1761202623833,2.92,186.84,186.8,4.0017862]
[1761202624226,2.92,186.84,186.79,4.8165]
[1761202626733,4.1917862,186.84,186.74,2.73]
[1761202626933,2.92,186.8,186.73,2.73]
[1761202627437,4.00505041,186.84,186.75,7.5475]
[1761202627438,4.1917862,186.83,186.75,7.5475]
[1761202627834,2.92,186.83,186.76,1.2717862]
[1761202628138,2.92,186.83,186.77,4.8171]
[1761202628335,2.92,186.83,186.78,1.2717862]
[1761202628536,2.92,186.83,186.79,2.73]
[1761202629332,20.06848851,186.88,186.8,1.2717862]
[1761202629333,2.92,186.88,186.8,1.2717862]
[1761202629532,2.92,186.88,186.82,1.2717862]
[1761202629934,2.92,186.88,186.82,4.8157]
[1761202631234,2.92,186.83,186.75,1.2717862]
[1761202631434,2.92,186.81,186.73,4.0017862]
[1761202632042,2.92,186.81,186.76,7.5472]
[1761202632338,2.92,186.81,186.73,1.2717862]
[1761202632339,2.92,186.85,186.77,4.0017862]
[1761202632538,2.92,186.85,186.77,2.73]
[1761202632931,6.68934179,186.94,186.77,2.73]
[1761202632932,4.1917862,186.84,186.77,2.73]
[1761202634040,4.1917862,186.84,186.77,7.547]
[1761202635234,2.92,186.83,186.77,7.547]
[1761202635542,2.92,186.83,186.78,7.5469]
[1761202636442,2.92,186.83,186.79,2.73]
[1761202636642,1.2717862,186.84,186.79,2.73]
[1761202636937,2.92,186.84,186.8,2.73]
[1761202637140,1.2717862,186.85,186.8,2.73]
[1761202637328,4.1917862,186.87,186.8,2.73]
[1761202637642,4.1917862,186.87,186.82,7.5458]
[1761202637941,2.92,186.86,186.82,7.5458]
[1761202646446,2.94,186.9,186.83,2.86]
[1761202646645,1.2717862,186.89,186.83,2.86]
[1761202646948,4.2117862,186.89,186.85,2.86]
[1761202647844,1.2717862,186.89,186.86,2.86]
[1761202648056,16.06,186.92,186.86,2.86]
[1761202648243,4.2117862,186.9,186.86,2.86]
[1761202648444,2.94,186.9,186.87,2.85]
[1761202649751,2.94,186.9,186.86,4.8148]
[1761202650253,4.2117862,186.9,186.86,4.8148]
[1761202651052,2.94,186.9,186.86,4.8148]
[1761202651257,2.94,186.9,186.87,2.85]
[1761202652158,1.2717862,186.91,186.87,2.85]
[1761202652354,1.2717862,186.91,186.88,2.85]
[1761202653657,3.9817862,186.91,186.88,2.85]
[1761202653858,2.71,186.9,186.87,4.8145]
[1761202654763,2.71,186.9,186.87,7.6645]
[1761202657668,3.9817862,186.9,186.87,7.6645]
[1761202657867,1.2717862,186.9,186.88,2.85]
[1761202658769,1.2717862,186.9,186.87,4.8145]
[1761202658971,1.2717862,186.9,186.87,7.6645]
[1761202660165,2.71,186.96,186.89,2.85]
[1761202660470,1.2717862,186.9,186.86,2.85]
[1761202660665,3.9817862,186.9,186.86,2.85]
[1761202660970,1.2717862,186.9,186.87,2.85]
[1761202661264,1.2717862,186.92,186.87,2.85]
[1761202661465,2.71,186.91,186.87,2.85]
[1761202662066,2.71,186.91,186.86,4.8147]
[1761202662260,3.9817862,186.9,186.86,2.85]
[1761202662462,2.71,186.89,186.86,2.85]
[1761202664067,3.9817862,186.92,186.86,2.85]
[1761202664370,2.71,186.91,186.86,2.85]
[1761202666770,2.71,186.91,186.87,4.1217862]
[1761202668376,2.71,186.91,186.87,1.2717862]
[1761202668680,2.71,186.91,186.88,2.85]
[1761202671282,2.71,186.91,186.86,4.8147]
[1761202671481,2.71,186.91,186.87,2.85]
[1761202671983,2.71,186.91,186.86,4.8147]
[1761202672981,16.06,186.89,186.77,2.85]
[1761202673182,2.71,186.85,186.77,2.85]
[1761202674687,2.71,186.85,186.78,4.8169]
[1761202675377,2.71,186.84,186.78,4.8169]
[1761202675585,2.71,186.83,186.77,2.85]
[1761202678983,2.71,186.83,186.77,7.667]
[1761202682080,2.71,186.83,186.79,4.8165]
[1761202682286,2.66,186.92,186.81,2.88]
[1761202682786,2.66,186.92,186.82,2.88]
[1761202682975,2.66,186.92,186.83,2.88]
[1761202683891,2.66,186.92,186.83,7.6955]
[1761202684186,2.66,186.92,186.84,2.88]
[1761202686182,2.66,186.92,186.84,7.6952]
[1761202686388,2.66,186.92,186.85,2.88]
[1761202686589,2.66,186.92,186.86,2.88]
[1761202687791,2.66,186.92,186.86,7.6947]
[1761202687987,2.66,186.92,186.87,2.88]
[1761202688590,2.66,186.96,186.88,4.86338479]
[1761202688888,2.66,186.96,186.89,2.88]
[1761202689095,2.66,186.96,186.9,4.8137]
[1761202689289,2.66,186.96,186.91,2.88]
[1761202690089,2.66,187.03,186.91,9.67688479]
[1761202690393,2.66,187.03,186.92,2.88]
[1761202690990,2.66,187.03,186.94,1.98338479]
[1761202691191,2.66,187.03,186.95,2.88]
[1761202698397,2.66,187.01,186.95,2.88]
[1761202698598,2.66,186.99,186.95,2.88]
[1761202699097,2.66,186.99,186.92,2.88]
[1761202699698,2.66,186.97,186.89,2.88]